[Event "Titled Tuesday Blitz March 22 Early 2022"]
[White "Kollars, Dmitrij"]
[Black "Starozhilov, Leonid"]
[WhiteFideId "12909572"]
[BlackFideId "14106752"]
[WhiteElo "2584"]
[BlackElo "2414"]
[Result "1-0"]
[Round "02"]
[TimeControl "180+1"]
[Date "2022.03.22"]
[WhiteClock "0:00:16"]
[BlackClock "0:00:03"]

1. c4 {[%clk 0:03:00]}  Nf6 {[%clk 0:02:58]} 2. Nc3 {[%clk 0:02:55]}  g6 {[%clk 0:02:57]} 3. e4 {[%clk 0:02:53]}  d6 {[%clk 0:02:57]} 4. d4 {[%clk 0:02:54]}  Bg7 {[%clk 0:02:57]} 5. h3 {[%clk 0:02:54]}  O-O {[%clk 0:02:56]} 6. Be3 {[%clk 0:02:55]}  c5 {[%clk 0:02:51]} 7. Nf3 {[%clk 0:02:54]}  cxd4 {[%clk 0:02:51]} 8. Nxd4 {[%clk 0:02:54]}  Nc6 {[%clk 0:02:51]} 9. Be2 {[%clk 0:02:49]}  Nxd4 {[%clk 0:02:51]} 10. Bxd4 {[%clk 0:02:50]}  b6 {[%clk 0:02:51]} 11. O-O {[%clk 0:02:46]}  Bb7 {[%clk 0:02:50]} 12. Qd3 {[%clk 0:02:42]}  Rc8 {[%clk 0:02:45]} 13. Rad1 {[%clk 0:02:40]}  Nd7 {[%clk 0:02:45]} 14. Bxg7 {[%clk 0:02:40]}  Kxg7 {[%clk 0:02:46]} 15. f4 {[%clk 0:02:40]}  Qc7 {[%clk 0:02:23]} 16. Qd4+ {[%clk 0:02:29]}  f6 {[%clk 0:02:17]} 17. Bg4 {[%clk 0:02:25]}  Rcd8 {[%clk 0:02:07]} 18. Nd5 {[%clk 0:02:14]}  Bxd5 {[%clk 0:02:06]} 19. exd5 {[%clk 0:02:14]}  Qc5 {[%clk 0:02:04]} 20. Rfe1 {[%clk 0:02:14]}  Rfe8 {[%clk 0:01:57]} 21. b3 {[%clk 0:01:29]}  a5 {[%clk 0:01:52]} 22. Kf2 {[%clk 0:01:27]}  Qxd4+ {[%clk 0:01:47]} 23. Rxd4 {[%clk 0:01:28]}  f5 {[%clk 0:01:48]} 24. Bf3 {[%clk 0:01:26]}  Nc5 {[%clk 0:01:48]} 25. g4 {[%clk 0:01:25]}  e5 {[%clk 0:01:35]} 26. dxe6 {[%clk 0:01:09]}  Nxe6 {[%clk 0:01:35]} 27. Rdd1 {[%clk 0:01:10]}  Nxf4 {[%clk 0:01:10]} 28. Rxe8 {[%clk 0:01:10]}  Rxe8 {[%clk 0:01:10]} 29. gxf5 {[%clk 0:01:11]}  Nxh3+ {[%clk 0:00:42]} 30. Kg2 {[%clk 0:01:12]}  Nf4+ {[%clk 0:00:35]} 31. Kg3 {[%clk 0:01:09]}  Ne2+ {[%clk 0:00:35]} 32. Kf2 {[%clk 0:01:08]}  Nc3 {[%clk 0:00:31]} 33. Rxd6 {[%clk 0:01:06]}  gxf5 {[%clk 0:00:30]} 34. Rxb6 {[%clk 0:01:00]}  Nxa2 {[%clk 0:00:31]} 35. c5 {[%clk 0:00:59]}  Nb4 {[%clk 0:00:22]} 36. Rb5 {[%clk 0:00:45]}  Re5 {[%clk 0:00:22]} 37. Kg3 {[%clk 0:00:38]}  Nd3 {[%clk 0:00:20]} 38. Rb7+ {[%clk 0:00:38]}  Kf6 {[%clk 0:00:20]} 39. c6 {[%clk 0:00:39]}  f4+ {[%clk 0:00:20]} 40. Kh4 {[%clk 0:00:29]}  Rc5 {[%clk 0:00:19]} 41. c7 {[%clk 0:00:23]}  Ne5 {[%clk 0:00:16]} 42. Rb6+ {[%clk 0:00:23]}  Ke7 {[%clk 0:00:17]} 43. Bc6 {[%clk 0:00:23]}  Ng6+ {[%clk 0:00:07]} 44. Kh3 {[%clk 0:00:14]}  Rc3+ {[%clk 0:00:07]} 45. Kh2 {[%clk 0:00:15]}  Rc2+ {[%clk 0:00:07]} 46. Kg1 {[%clk 0:00:15]}  Rc1+ {[%clk 0:00:02]} 47. Kf2 {[%clk 0:00:15]}  Rc2+ {[%clk 0:00:03]} 48. Ke1 {[%clk 0:00:16]} 1-0


[Site "https://www.chess.com"]

[Event "Titled Tuesday Blitz March 22 Early 2022"]
[White "Koridze, Lile"]
[Black "Khamzin, Olzhas"]
[WhiteFideId "13612514"]
[BlackFideId "13701690"]
[WhiteElo "1999"]
[BlackElo "2194"]
[Result "0-1"]
[Round "02"]
[TimeControl "180+1"]
[Date "2022.03.22"]
[WhiteClock "0:00:04"]
[BlackClock "0:00:51"]

1. d4 {[%clk 0:03:00]}  Nf6 {[%clk 0:02:59]} 2. c4 {[%clk 0:03:01]}  c5 {[%clk 0:02:59]} 3. d5 {[%clk 0:03:01]}  e6 {[%clk 0:03:00]} 4. Nc3 {[%clk 0:02:52]}  exd5 {[%clk 0:03:01]} 5. cxd5 {[%clk 0:02:48]}  Bd6 {[%clk 0:02:59]} 6. Nf3 {[%clk 0:02:48]}  O-O {[%clk 0:02:59]} 7. e4 {[%clk 0:02:46]}  Re8 {[%clk 0:02:57]} 8. Bd3 {[%clk 0:02:46]}  c4 {[%clk 0:02:58]} 9. Bc2 {[%clk 0:02:46]}  Bc5 {[%clk 0:02:58]} 10. O-O {[%clk 0:02:46]}  d6 {[%clk 0:02:59]} 11. h3 {[%clk 0:02:45]}  Nbd7 {[%clk 0:02:58]} 12. Bg5 {[%clk 0:02:44]}  a6 {[%clk 0:02:57]} 13. a4 {[%clk 0:02:41]}  Qc7 {[%clk 0:02:57]} 14. Nd2 {[%clk 0:02:38]}  h6 {[%clk 0:02:47]} 15. Bh4 {[%clk 0:02:36]}  Bb4 {[%clk 0:02:22]} 16. Re1 {[%clk 0:02:24]}  Rb8 {[%clk 0:02:22]} 17. Nf3 {[%clk 0:02:22]}  b5 {[%clk 0:02:17]} 18. axb5 {[%clk 0:02:20]}  axb5 {[%clk 0:02:18]} 19. Nd4 {[%clk 0:02:20]}  Bxc3 {[%clk 0:02:16]} 20. bxc3 {[%clk 0:02:20]}  g5 {[%clk 0:02:02]} 21. Bg3 {[%clk 0:02:18]}  Ne5 {[%clk 0:01:59]} 22. Qd2 {[%clk 0:02:11]}  Bd7 {[%clk 0:01:54]} 23. h4 {[%clk 0:02:05]}  Nh7 {[%clk 0:01:41]} 24. hxg5 {[%clk 0:02:00]}  hxg5 {[%clk 0:01:42]} 25. f4 {[%clk 0:01:52]}  gxf4 {[%clk 0:01:41]} 26. Qxf4 {[%clk 0:01:51]}  b4 {[%clk 0:01:38]} 27. cxb4 {[%clk 0:01:43]}  Rxb4 {[%clk 0:01:38]} 28. Rf1 {[%clk 0:01:29]}  Qb6 {[%clk 0:01:31]} 29. Bf2 {[%clk 0:01:29]}  Qd8 {[%clk 0:01:24]} 30. Be3 {[%clk 0:01:18]}  c3 {[%clk 0:01:09]} 31. Rf2 {[%clk 0:00:58]}  Qg5 {[%clk 0:01:02]} 32. Qxg5+ {[%clk 0:00:22]}  Nxg5 {[%clk 0:01:03]} 33. Ne2 {[%clk 0:00:20]}  Nxe4 {[%clk 0:00:58]} 34. Bxe4 {[%clk 0:00:20]}  Rxe4 {[%clk 0:00:58]} 35. Bf4 {[%clk 0:00:17]}  Rc8 {[%clk 0:00:58]} 36. Rc1 {[%clk 0:00:16]}  c2 {[%clk 0:00:56]} 37. Ng3 {[%clk 0:00:14]}  Rxf4 {[%clk 0:00:55]} 38. Rxf4 {[%clk 0:00:13]}  Nd3 {[%clk 0:00:55]} 39. Rff1 {[%clk 0:00:14]}  Nxc1 {[%clk 0:00:55]} 40. Rxc1 {[%clk 0:00:15]}  Ba4 {[%clk 0:00:55]} 41. Ne4 {[%clk 0:00:15]}  Rb8 {[%clk 0:00:56]} 42. Nc3 {[%clk 0:00:13]}  Bb3 {[%clk 0:00:56]} 43. Kf2 {[%clk 0:00:13]}  Re8 {[%clk 0:00:56]} 44. g4 {[%clk 0:00:09]}  Re5 {[%clk 0:00:56]} 45. Kg3 {[%clk 0:00:09]}  Kf8 {[%clk 0:00:56]} 46. Kf4 {[%clk 0:00:09]}  Ke7 {[%clk 0:00:56]} 47. Ne4 {[%clk 0:00:06]}  Bxd5 {[%clk 0:00:56]} 48. Nc3 {[%clk 0:00:06]}  Bb3 {[%clk 0:00:56]} 49. Ne4 {[%clk 0:00:05]}  f6 {[%clk 0:00:56]} 50. g5 {[%clk 0:00:05]}  fxg5+ {[%clk 0:00:52]} 51. Nxg5 {[%clk 0:00:06]}  Rd5 {[%clk 0:00:52]} 52. Ne4 {[%clk 0:00:04]}  Rd1 {[%clk 0:00:51]} 0-1


[Site "https://www.chess.com"]

[Event "Titled Tuesday Blitz March 22 Early 2022"]
[White "Kosteniuk, Alexandra"]
[Black "Kalogridis, Antonios"]
[WhiteFideId "4128125"]
[BlackFideId "25833901"]
[WhiteElo "2469"]
[BlackElo "1495"]
[Result "1-0"]
[Round "02"]
[TimeControl "180+1"]
[Date "2022.03.22"]
[WhiteClock "0:01:57"]
[BlackClock "0:00:09"]

1. e4 {[%clk 0:03:00]}  c6 {[%clk 0:03:00]} 2. Nc3 {[%clk 0:02:58]}  d5 {[%clk 0:03:00]} 3. Nf3 {[%clk 0:02:58]}  dxe4 {[%clk 0:02:57]} 4. Nxe4 {[%clk 0:02:58]}  Nf6 {[%clk 0:02:58]} 5. Qe2 {[%clk 0:02:57]}  Nxe4 {[%clk 0:02:58]} 6. Qxe4 {[%clk 0:02:57]}  Nd7 {[%clk 0:02:58]} 7. Bc4 {[%clk 0:02:56]}  Nf6 {[%clk 0:02:58]} 8. Ne5 {[%clk 0:02:56]}  e6 {[%clk 0:02:58]} 9. Qe2 {[%clk 0:02:51]}  b5 {[%clk 0:02:53]} 10. Bd3 {[%clk 0:02:50]}  Qc7 {[%clk 0:02:47]} 11. b3 {[%clk 0:02:47]}  a6 {[%clk 0:02:43]} 12. Bb2 {[%clk 0:02:46]}  Bb7 {[%clk 0:02:41]} 13. c4 {[%clk 0:02:40]}  b4 {[%clk 0:02:32]} 14. O-O-O {[%clk 0:02:38]}  c5 {[%clk 0:02:29]} 15. f3 {[%clk 0:02:34]}  Be7 {[%clk 0:02:25]} 16. Rhe1 {[%clk 0:02:31]}  O-O {[%clk 0:02:25]} 17. Bb1 {[%clk 0:02:29]}  a5 {[%clk 0:02:24]} 18. g4 {[%clk 0:02:26]}  a4 {[%clk 0:02:19]} 19. g5 {[%clk 0:02:26]}  Nh5 {[%clk 0:02:14]} 20. g6 {[%clk 0:02:23]}  hxg6 {[%clk 0:02:03]} 21. Nxg6 {[%clk 0:02:23]}  Nf4 {[%clk 0:00:33]} 22. Nxe7+ {[%clk 0:02:16]}  Qxe7 {[%clk 0:00:33]} 23. Qe5 {[%clk 0:02:16]}  Qf6 {[%clk 0:00:31]} 24. Qxf6 {[%clk 0:02:14]}  gxf6 {[%clk 0:00:31]} 25. Rg1+ {[%clk 0:02:14]}  Ng6 {[%clk 0:00:23]} 26. Bxf6 {[%clk 0:02:10]}  Bxf3 {[%clk 0:00:19]} 27. Rdf1 {[%clk 0:02:10]}  Bh5 {[%clk 0:00:19]} 28. Rg5 {[%clk 0:02:09]}  Be2 {[%clk 0:00:18]} 29. Rf2 {[%clk 0:02:10]}  axb3 {[%clk 0:00:11]} 30. axb3 {[%clk 0:02:09]}  Kh7 {[%clk 0:00:09]} 31. Rxe2 {[%clk 0:02:08]}  Kh6 {[%clk 0:00:09]} 32. Re3 {[%clk 0:02:02]}  Nf4 {[%clk 0:00:09]} 33. Rg4 {[%clk 0:01:57]} 1-0


[Site "https://www.chess.com"]

[Event "Titled Tuesday Blitz March 22 Early 2022"]
[White "Kowalczyk, Pawel"]
[Black "Bortnyk, Olexandr"]
[WhiteFideId "1130641"]
[BlackFideId "14120828"]
[WhiteElo "2344"]
[BlackElo "2723"]
[Result "0-1"]
[Round "02"]
[TimeControl "180+1"]
[Date "2022.03.22"]
[WhiteClock "0:00:05"]
[BlackClock "0:00:06"]

1. e4 {[%clk 0:03:00]}  Nf6 {[%clk 0:02:58]} 2. e5 {[%clk 0:02:58]}  Nd5 {[%clk 0:02:56]} 3. Nf3 {[%clk 0:02:59]}  d6 {[%clk 0:02:56]} 4. Bc4 {[%clk 0:02:58]}  Nb6 {[%clk 0:02:55]} 5. Bb3 {[%clk 0:02:59]}  c5 {[%clk 0:02:56]} 6. c3 {[%clk 0:02:56]}  Nc6 {[%clk 0:02:52]} 7. exd6 {[%clk 0:02:56]}  Qxd6 {[%clk 0:02:51]} 8. d4 {[%clk 0:02:54]}  Bg4 {[%clk 0:02:43]} 9. Bxf7+ {[%clk 0:02:50]}  Kxf7 {[%clk 0:02:43]} 10. Ng5+ {[%clk 0:02:51]}  Kg8 {[%clk 0:02:41]} 11. Qxg4 {[%clk 0:02:51]}  cxd4 {[%clk 0:02:41]} 12. O-O {[%clk 0:02:49]}  e5 {[%clk 0:02:25]} 13. cxd4 {[%clk 0:02:41]}  Nxd4 {[%clk 0:02:18]} 14. Nc3 {[%clk 0:02:39]}  Qg6 {[%clk 0:02:14]} 15. Qd1 {[%clk 0:02:22]}  Rd8 {[%clk 0:02:02]} 16. Be3 {[%clk 0:02:15]}  Be7 {[%clk 0:01:41]} 17. Bxd4 {[%clk 0:02:07]}  Bxg5 {[%clk 0:01:00]} 18. Qb3+ {[%clk 0:02:03]}  Qf7 {[%clk 0:01:01]} 19. Bxe5 {[%clk 0:01:54]}  Nc4 {[%clk 0:00:58]} 20. Bg3 {[%clk 0:01:49]}  Nd2 {[%clk 0:00:57]} 21. Qxf7+ {[%clk 0:01:49]}  Kxf7 {[%clk 0:00:58]} 22. Rfd1 {[%clk 0:01:48]}  a6 {[%clk 0:00:50]} 23. a4 {[%clk 0:01:47]}  Rhe8 {[%clk 0:00:49]} 24. h4 {[%clk 0:01:47]}  Bf6 {[%clk 0:00:49]} 25. Re1 {[%clk 0:01:25]}  Rxe1+ {[%clk 0:00:39]} 26. Rxe1 {[%clk 0:01:26]}  Nc4 {[%clk 0:00:39]} 27. Ne4 {[%clk 0:01:08]}  Nxb2 {[%clk 0:00:34]} 28. Nd6+ {[%clk 0:01:00]}  Kg6 {[%clk 0:00:34]} 29. Nxb7 {[%clk 0:01:00]}  Rd5 {[%clk 0:00:32]} 30. Re4 {[%clk 0:00:53]}  Kf5 {[%clk 0:00:21]} 31. Rf4+ {[%clk 0:00:52]}  Ke6 {[%clk 0:00:21]} 32. Rb4 {[%clk 0:00:50]}  Kd7 {[%clk 0:00:20]} 33. Rb6 {[%clk 0:00:39]}  a5 {[%clk 0:00:15]} 34. Ra6 {[%clk 0:00:36]}  Bc3 {[%clk 0:00:14]} 35. Nd6 {[%clk 0:00:33]}  Nxa4 {[%clk 0:00:13]} 36. Ra7+ {[%clk 0:00:32]}  Kc6 {[%clk 0:00:13]} 37. Ne4 {[%clk 0:00:31]}  Bd4 {[%clk 0:00:11]} 38. Rc7+ {[%clk 0:00:29]}  Kb5 {[%clk 0:00:11]} 39. Rb7+ {[%clk 0:00:28]}  Ka6 {[%clk 0:00:11]} 40. Rb8 {[%clk 0:00:27]}  Nb6 {[%clk 0:00:11]} 41. Bc7 {[%clk 0:00:22]}  a4 {[%clk 0:00:11]} 42. Bxb6 {[%clk 0:00:23]}  Bxb6 {[%clk 0:00:12]} 43. Ra8+ {[%clk 0:00:23]}  Ba7 {[%clk 0:00:12]} 44. Nc3 {[%clk 0:00:24]}  Rd4 {[%clk 0:00:11]} 45. Rxa7+ {[%clk 0:00:21]}  Kxa7 {[%clk 0:00:12]} 46. Nb5+ {[%clk 0:00:21]}  Kb6 {[%clk 0:00:13]} 47. Nxd4 {[%clk 0:00:21]}  Kc5 {[%clk 0:00:13]} 48. Nc2 {[%clk 0:00:14]}  Kc4 {[%clk 0:00:13]} 49. Kf1 {[%clk 0:00:15]}  Kb3 {[%clk 0:00:12]} 50. Nd4+ {[%clk 0:00:14]}  Kc3 {[%clk 0:00:11]} 51. Nb5+ {[%clk 0:00:13]}  Kc4 {[%clk 0:00:10]} 52. Na3+ {[%clk 0:00:11]}  Kb3 {[%clk 0:00:11]} 53. Nb5 {[%clk 0:00:10]}  Kb4 {[%clk 0:00:11]} 54. Nd4 {[%clk 0:00:10]}  Kc4 {[%clk 0:00:11]} 55. Nc2 {[%clk 0:00:10]}  Kb3 {[%clk 0:00:10]} 56. Na1+ {[%clk 0:00:07]}  Kb2 {[%clk 0:00:09]} 57. h5 {[%clk 0:00:04]}  Kxa1 {[%clk 0:00:08]} 58. h6 {[%clk 0:00:04]}  gxh6 {[%clk 0:00:05]} 59. f4 {[%clk 0:00:05]}  Kb2 {[%clk 0:00:06]} 0-1


[Site "https://www.chess.com"]

[Event "Titled Tuesday Blitz March 22 Early 2022"]
[White "Krysa, Leandro"]
[Black "Jobava, Baadur"]
[WhiteFideId "116807"]
[BlackFideId "13601520"]
[WhiteElo "2490"]
[BlackElo "2617"]
[Result "0-1"]
[Round "02"]
[TimeControl "180+1"]
[Date "2022.03.22"]
[WhiteClock "0:00:04"]
[BlackClock "0:01:22"]

1. e4 {[%clk 0:03:00]}  c6 {[%clk 0:02:57]} 2. d4 {[%clk 0:03:00]}  d5 {[%clk 0:02:57]} 3. e5 {[%clk 0:03:00]}  Bf5 {[%clk 0:02:56]} 4. h4 {[%clk 0:03:00]}  f6 {[%clk 0:02:56]} 5. Bd3 {[%clk 0:02:54]}  Bxd3 {[%clk 0:02:55]} 6. Qxd3 {[%clk 0:02:55]}  fxe5 {[%clk 0:02:55]} 7. dxe5 {[%clk 0:02:54]}  e6 {[%clk 0:02:54]} 8. c4 {[%clk 0:02:53]}  Na6 {[%clk 0:02:52]} 9. Nf3 {[%clk 0:02:46]}  Nc5 {[%clk 0:02:42]} 10. Qe2 {[%clk 0:02:43]}  dxc4 {[%clk 0:02:42]} 11. O-O {[%clk 0:02:40]}  Qd3 {[%clk 0:02:40]} 12. Nc3 {[%clk 0:02:30]}  O-O-O {[%clk 0:02:34]} 13. Bg5 {[%clk 0:02:17]}  Qxe2 {[%clk 0:02:32]} 14. Nxe2 {[%clk 0:02:16]}  Rd7 {[%clk 0:02:32]} 15. Ned4 {[%clk 0:02:06]}  Nh6 {[%clk 0:02:11]} 16. Rac1 {[%clk 0:02:02]}  Nf7 {[%clk 0:02:07]} 17. Rxc4 {[%clk 0:01:58]}  Nxg5 {[%clk 0:02:03]} 18. hxg5 {[%clk 0:01:52]}  a5 {[%clk 0:02:00]} 19. Rfc1 {[%clk 0:01:49]}  Rd5 {[%clk 0:02:00]} 20. b3 {[%clk 0:01:29]}  Be7 {[%clk 0:01:59]} 21. a3 {[%clk 0:01:28]}  Rhd8 {[%clk 0:01:50]} 22. b4 {[%clk 0:01:26]}  axb4 {[%clk 0:01:51]} 23. axb4 {[%clk 0:01:26]}  Nd3 {[%clk 0:01:51]} 24. Ra1 {[%clk 0:00:54]}  Nxe5 {[%clk 0:01:50]} 25. Nxe5 {[%clk 0:00:44]}  Rxd4 {[%clk 0:01:49]} 26. Ra8+ {[%clk 0:00:25]}  Kc7 {[%clk 0:01:48]} 27. Rxd8 {[%clk 0:00:24]}  Rxd8 {[%clk 0:01:45]} 28. b5 {[%clk 0:00:20]}  c5 {[%clk 0:01:37]} 29. f4 {[%clk 0:00:19]}  Kb6 {[%clk 0:01:35]} 30. Rc2 {[%clk 0:00:13]}  Rd4 {[%clk 0:01:35]} 31. g3 {[%clk 0:00:10]}  Kxb5 {[%clk 0:01:34]} 32. Kf2 {[%clk 0:00:10]}  c4 {[%clk 0:01:32]} 33. Ke3 {[%clk 0:00:08]}  Bc5 {[%clk 0:01:27]} 34. Rb2+ {[%clk 0:00:08]}  Ka4 {[%clk 0:01:25]} 35. Kf3 {[%clk 0:00:05]}  b5 {[%clk 0:01:24]} 36. Nc6 {[%clk 0:00:04]}  Rd3+ {[%clk 0:01:23]} 37. Kg4 {[%clk 0:00:04]}  c3 {[%clk 0:01:22]} 0-1


[Site "https://www.chess.com"]

[Event "Titled Tuesday Blitz March 22 Early 2022"]
[White "Kulkarni, Rakesh"]
[Black "Horcajuelo Rocamora, Martin"]
[WhiteFideId "5037077"]
[BlackFideId "24573027"]
[WhiteElo "2246"]
[BlackElo "1706"]
[Result "1-0"]
[Round "02"]
[TimeControl "180+1"]
[Date "2022.03.22"]
[WhiteClock "0:02:14"]
[BlackClock "0:01:45"]

1. e4 {[%clk 0:02:57]}  e5 {[%clk 0:02:59]} 2. d4 {[%clk 0:02:57]}  exd4 {[%clk 0:02:58]} 3. Qxd4 {[%clk 0:02:57]}  Nc6 {[%clk 0:02:58]} 4. Qe3 {[%clk 0:02:58]}  Nf6 {[%clk 0:02:57]} 5. Nc3 {[%clk 0:02:58]}  Bb4 {[%clk 0:02:57]} 6. Bd2 {[%clk 0:02:59]}  O-O {[%clk 0:02:57]} 7. O-O-O {[%clk 0:02:59]}  Re8 {[%clk 0:02:56]} 8. Qg3 {[%clk 0:03:00]}  Nxe4 {[%clk 0:02:53]} 9. Nxe4 {[%clk 0:02:59]}  Rxe4 {[%clk 0:02:53]} 10. c3 {[%clk 0:02:58]}  Bd6 {[%clk 0:02:52]} 11. f4 {[%clk 0:02:58]}  a6 {[%clk 0:02:35]} 12. Bd3 {[%clk 0:02:54]}  Re8 {[%clk 0:02:34]} 13. Nf3 {[%clk 0:02:54]}  h6 {[%clk 0:02:25]} 14. Nh4 {[%clk 0:02:49]}  Ne7 {[%clk 0:02:18]} 15. Rhe1 {[%clk 0:02:44]}  c6 {[%clk 0:02:01]} 16. c4 {[%clk 0:02:42]}  Bb8 {[%clk 0:01:57]} 17. Bc3 {[%clk 0:02:41]}  g6 {[%clk 0:01:53]} 18. Nxg6 {[%clk 0:02:38]}  fxg6 {[%clk 0:01:47]} 19. Bxg6 {[%clk 0:02:38]}  Kf8 {[%clk 0:01:45]} 20. Bxe8 {[%clk 0:02:14]} 1-0


[Site "https://www.chess.com"]

[Event "Titled Tuesday Blitz March 22 Early 2022"]
[White "Ladan, Nicholas"]
[Black "Sammed Jaykumar, Shete"]
[WhiteFideId "30918855"]
[BlackFideId "5073421"]
[WhiteElo "2167"]
[BlackElo "2253"]
[Result "0-1"]
[Round "02"]
[TimeControl "180+1"]
[Date "2022.03.22"]
[WhiteClock "0:00:31"]
[BlackClock "0:02:15"]

1. d4 {[%clk 0:03:00]}  Nf6 {[%clk 0:02:59]} 2. Bf4 {[%clk 0:03:00]}  e6 {[%clk 0:02:58]} 3. Nf3 {[%clk 0:02:58]}  d6 {[%clk 0:02:57]} 4. e3 {[%clk 0:02:58]}  g6 {[%clk 0:02:56]} 5. Nbd2 {[%clk 0:02:50]}  Bg7 {[%clk 0:02:56]} 6. h4 {[%clk 0:02:48]}  h6 {[%clk 0:02:54]} 7. c4 {[%clk 0:02:42]}  O-O {[%clk 0:02:53]} 8. Bd3 {[%clk 0:02:41]}  Nc6 {[%clk 0:02:52]} 9. a3 {[%clk 0:02:31]}  e5 {[%clk 0:02:51]} 10. Bg3 {[%clk 0:02:22]}  exd4 {[%clk 0:02:44]} 11. exd4 {[%clk 0:02:20]}  Re8+ {[%clk 0:02:43]} 12. Kf1 {[%clk 0:02:21]}  Nh5 {[%clk 0:02:37]} 13. Bh2 {[%clk 0:02:11]}  Nxd4 {[%clk 0:02:32]} 14. Nxd4 {[%clk 0:01:36]}  Bxd4 {[%clk 0:02:33]} 15. g4 {[%clk 0:01:33]}  Qxh4 {[%clk 0:02:31]} 16. Qf3 {[%clk 0:01:25]}  Bxg4 {[%clk 0:02:30]} 17. Bg3 {[%clk 0:00:40]}  Qg5 {[%clk 0:02:18]} 18. Qxb7 {[%clk 0:00:32]}  Nxg3+ {[%clk 0:02:15]} 19. fxg3 {[%clk 0:00:32]}  Qxd2 {[%clk 0:02:15]} 20. Bxg6 {[%clk 0:00:31]}  Qf2# {[%clk 0:02:15]} 0-1


[Site "https://www.chess.com"]

[Event "Titled Tuesday Blitz March 22 Early 2022"]
[White "Lakshmi C"]
[Black "Vlassov, Nikolai"]
[WhiteFideId "25035347"]
[BlackFideId "4103360"]
[WhiteElo "1775"]
[BlackElo "2407"]
[Result "0-1"]
[Round "02"]
[TimeControl "180+1"]
[Date "2022.03.22"]
[WhiteClock "0:00:21"]
[BlackClock "0:00:43"]

1. e4 {[%clk 0:03:00]}  c5 {[%clk 0:02:59]} 2. Nc3 {[%clk 0:03:00]}  g6 {[%clk 0:02:59]} 3. Nf3 {[%clk 0:03:00]}  Bg7 {[%clk 0:02:59]} 4. d4 {[%clk 0:02:59]}  cxd4 {[%clk 0:02:59]} 5. Nxd4 {[%clk 0:03:00]}  d6 {[%clk 0:02:56]} 6. Be3 {[%clk 0:03:00]}  Nf6 {[%clk 0:02:56]} 7. Bb5+ {[%clk 0:02:59]}  Nbd7 {[%clk 0:02:54]} 8. O-O {[%clk 0:02:55]}  a6 {[%clk 0:02:53]} 9. Bd3 {[%clk 0:02:54]}  Ne5 {[%clk 0:02:47]} 10. h3 {[%clk 0:02:51]}  Nxd3 {[%clk 0:02:46]} 11. cxd3 {[%clk 0:02:51]}  O-O {[%clk 0:02:45]} 12. f4 {[%clk 0:02:42]}  e5 {[%clk 0:02:42]} 13. Nf3 {[%clk 0:02:38]}  exf4 {[%clk 0:02:41]} 14. Bxf4 {[%clk 0:02:38]}  d5 {[%clk 0:02:42]} 15. e5 {[%clk 0:02:29]}  Nh5 {[%clk 0:02:41]} 16. Be3 {[%clk 0:02:25]}  Ng3 {[%clk 0:02:36]} 17. Re1 {[%clk 0:02:20]}  Nf5 {[%clk 0:02:34]} 18. d4 {[%clk 0:02:17]}  Nxe3 {[%clk 0:02:30]} 19. Rxe3 {[%clk 0:02:18]}  Be6 {[%clk 0:02:05]} 20. Ne2 {[%clk 0:01:58]}  Bh6 {[%clk 0:01:57]} 21. Rc3 {[%clk 0:01:49]}  Rc8 {[%clk 0:01:58]} 22. Qb3 {[%clk 0:01:43]}  b5 {[%clk 0:01:54]} 23. a4 {[%clk 0:01:29]}  Qb6 {[%clk 0:01:47]} 24. a5 {[%clk 0:01:24]}  Qb7 {[%clk 0:01:41]} 25. g4 {[%clk 0:01:10]}  Rc4 {[%clk 0:01:39]} 26. g5 {[%clk 0:01:07]}  Bg7 {[%clk 0:01:36]} 27. h4 {[%clk 0:01:04]}  Rfc8 {[%clk 0:01:35]} 28. Rac1 {[%clk 0:00:59]}  Bg4 {[%clk 0:01:30]} 29. Kg2 {[%clk 0:00:54]}  Bf8 {[%clk 0:01:25]} 30. Nf4 {[%clk 0:00:46]}  Bb4 {[%clk 0:01:17]} 31. Nd3 {[%clk 0:00:42]}  Bxc3 {[%clk 0:01:14]} 32. bxc3 {[%clk 0:00:41]}  Bxf3+ {[%clk 0:01:05]} 33. Kxf3 {[%clk 0:00:40]}  Qd7 {[%clk 0:01:05]} 34. Nc5 {[%clk 0:00:28]}  Qh3+ {[%clk 0:01:02]} 35. Ke2 {[%clk 0:00:27]}  R8xc5 {[%clk 0:00:44]} 36. dxc5 {[%clk 0:00:24]}  Re4+ {[%clk 0:00:44]} 37. Kd2 {[%clk 0:00:22]}  Qg2+ {[%clk 0:00:44]} 38. Kd3 {[%clk 0:00:21]}  Qe2# {[%clk 0:00:43]} 0-1


[Site "https://www.chess.com"]

[Event "Titled Tuesday Blitz March 22 Early 2022"]
[White "Le, Tuan Minh"]
[Black "Atakhan, Abtin"]
[WhiteFideId "12401153"]
[BlackFideId "22502203"]
[WhiteElo "2450"]
[BlackElo "2119"]
[Result "1-0"]
[Round "02"]
[TimeControl "180+1"]
[Date "2022.03.22"]
[WhiteClock "0:00:05"]
[BlackClock "0:00:07"]

1. d4 {[%clk 0:03:00]}  Nf6 {[%clk 0:02:58]} 2. Nf3 {[%clk 0:02:59]}  d5 {[%clk 0:02:57]} 3. Bf4 {[%clk 0:02:58]}  c5 {[%clk 0:02:57]} 4. c3 {[%clk 0:02:58]}  Nc6 {[%clk 0:02:57]} 5. e3 {[%clk 0:02:57]}  Nh5 {[%clk 0:02:57]} 6. Be5 {[%clk 0:02:57]}  f6 {[%clk 0:02:54]} 7. Bg3 {[%clk 0:02:56]}  Qb6 {[%clk 0:02:50]} 8. Qc2 {[%clk 0:02:49]}  Nxg3 {[%clk 0:02:48]} 9. hxg3 {[%clk 0:02:50]}  e5 {[%clk 0:02:46]} 10. dxe5 {[%clk 0:02:34]}  fxe5 {[%clk 0:02:43]} 11. e4 {[%clk 0:02:31]}  dxe4 {[%clk 0:02:38]} 12. Ng5 {[%clk 0:02:30]}  Bf5 {[%clk 0:02:32]} 13. Nd2 {[%clk 0:02:23]}  Be7 {[%clk 0:01:49]} 14. Ngxe4 {[%clk 0:02:18]}  O-O-O {[%clk 0:01:41]} 15. Nc4 {[%clk 0:02:17]}  Qc7 {[%clk 0:01:39]} 16. Ne3 {[%clk 0:02:16]}  Bg6 {[%clk 0:01:34]} 17. Be2 {[%clk 0:01:59]}  Kb8 {[%clk 0:01:31]} 18. Bf3 {[%clk 0:01:58]}  Bg5 {[%clk 0:01:26]} 19. Qe2 {[%clk 0:01:50]}  Be7 {[%clk 0:01:21]} 20. O-O {[%clk 0:01:43]}  h5 {[%clk 0:01:20]} 21. Rfd1 {[%clk 0:01:42]}  h4 {[%clk 0:01:12]} 22. Nd5 {[%clk 0:01:35]}  Qc8 {[%clk 0:01:09]} 23. Nxe7 {[%clk 0:01:23]}  Nxe7 {[%clk 0:01:10]} 24. Nd6 {[%clk 0:01:24]}  Qc7 {[%clk 0:00:59]} 25. Qxe5 {[%clk 0:01:13]}  hxg3 {[%clk 0:00:57]} 26. Qxg3 {[%clk 0:01:06]}  Bc2 {[%clk 0:00:43]} 27. Rd2 {[%clk 0:00:55]}  Nf5 {[%clk 0:00:43]} 28. Qg5 {[%clk 0:00:26]}  Rxd6 {[%clk 0:00:37]} 29. Rxc2 {[%clk 0:00:26]}  Nh4 {[%clk 0:00:31]} 30. Be4 {[%clk 0:00:19]}  Re6 {[%clk 0:00:30]} 31. Re2 {[%clk 0:00:07]}  Re5 {[%clk 0:00:17]} 32. Qg4 {[%clk 0:00:07]}  Qe7 {[%clk 0:00:16]} 33. Rae1 {[%clk 0:00:06]}  Reh5 {[%clk 0:00:15]} 34. g3 {[%clk 0:00:06]}  Rg5 {[%clk 0:00:13]} 35. Qf4+ {[%clk 0:00:06]}  Ka8 {[%clk 0:00:11]} 36. Bxb7+ {[%clk 0:00:05]}  Qxb7 {[%clk 0:00:06]} 37. Re8+ {[%clk 0:00:05]}  Qc8 {[%clk 0:00:07]} 38. Rxc8+ {[%clk 0:00:05]}  Rxc8 {[%clk 0:00:07]} 39. Qxh4 {[%clk 0:00:05]} 1-0


[Site "https://www.chess.com"]